bitfinex-derivatives/quotes_BTCF0:USTF0_20251119
["timestamp","ask_amount","ask_price","bid_price","bid_amount"]
[1763545878179,0.1674461,91511.0,91510.0,0.03543803]
[1763545878679,0.0581,91511.0,91510.0,0.03543803]
[1763545879269,0.1674459,91511.0,91510.0,0.03543803]
[1763545879779,0.5282459,91511.0,91510.0,0.00219803]
[1763545880074,0.04433,91495.0,91494.0,0.03324]
[1763545880280,0.153695,91495.0,91494.0,0.13864]
[1763545881276,0.153695,91495.0,91494.0,0.13964]
[1763545883277,0.153695,91495.0,91494.0,0.13864]
[1763545886980,0.40522,91502.0,91501.0,0.03324]
[1763545887275,0.5145766,91502.0,91501.0,0.03324]
[1763545887671,0.5145766,91502.0,91501.0,0.01662]
[1763545888373,0.5145766,91502.0,91501.0,0.03324]
[1763545890072,0.04442,91501.0,91500.0,0.00219803]
[1763545890376,0.04442,91501.0,91490.0,0.00016398]
[1763545890377,0.1537898,91491.0,91490.0,0.00016398]
[1763545890572,0.1093902,91474.0,91473.0,0.3608]
[1763545890777,0.04442,91473.0,91464.0,0.03901055]
[1763545890977,0.04442,91473.0,91460.0,0.13148276]
[1763545891581,0.04442,91473.0,91463.0,0.00016398]
[1763545893081,0.1693625,91464.0,91463.0,0.00016398]
[1763545893284,0.5301625,91464.0,91463.0,0.00016398]
[1763545893779,0.1693625,91464.0,91463.0,0.03340398]
[1763545893983,0.16946312,91464.0,91463.0,0.03340398]
[1763545894181,0.16946312,91464.0,91463.0,0.01678398]
[1763545894387,0.53026312,91464.0,91463.0,0.01678398]
[1763545894583,0.53026312,91464.0,91463.0,0.00016398]
[1763545894779,0.53026312,91464.0,91463.0,0.00116398]
[1763545894995,0.1556765,91452.0,91450.0,0.13148276]
[1763545895188,0.1556765,91452.0,91450.0,0.01881803]
[1763545895189,0.04626,91451.0,91450.0,0.01881803]
[1763545895389,0.04526,91451.0,91450.0,0.03543803]
[1763545896382,0.1094165,91452.0,91449.0,0.0004]
[1763545896383,0.04626,91450.0,91449.0,0.0004]
[1763545896581,0.04626,91450.0,91428.0,0.36093109]
[1763545896582,0.1094596,91416.0,91401.0,0.07799032]
[1763545896783,0.1094596,91416.0,91400.0,0.01265]
[1763545896784,0.1094704,91407.0,91400.0,0.01265]
[1763545896987,0.1094704,91407.0,91406.0,0.02135351]
[1763545897176,0.1094704,91407.0,91400.0,0.01265]
[1763545897177,0.1094871,91393.0,91392.0,0.01265]
[1763545897378,0.1095063,91377.0,91376.0,0.05677]
[1763545897586,0.8291063,91377.0,91376.0,0.05677]
[1763545897792,0.8292004,91377.0,91376.0,0.05677]
[1763545899791,0.8292004,91377.0,91376.0,0.05777]
[1763545899990,0.8292004,91377.0,91376.0,0.05877]
[1763545903193,0.8420204,91377.0,91376.0,0.002]
[1763545904389,0.8420204,91377.0,91376.0,0.0010001]
[1763545904692,0.03206,91367.0,91366.0,2e-08]
[1763545904888,0.49846,91367.0,91366.0,2e-08]
[1763545907093,0.49846,91367.0,91366.0,0.02108002]
[1763545907297,0.46644,91367.0,91366.0,2e-08]
[1763545907993,0.37683,91367.0,91366.0,0.02108002]
[1763545908192,0.3608,91367.0,91366.0,0.04412002]
[1763545909894,0.3608,91367.0,91366.0,0.04512002]
[1763545910697,0.4703186,91367.0,91366.0,0.04512002]
[1763545910998,0.3608,91367.0,91366.0,0.04512002]
[1763545913098,0.3608,91367.0,91366.0,0.04412002]
[1763545913400,0.39286,91367.0,91366.0,0.04412002]
[1763545913698,0.39286,91367.0,91366.0,2e-08]
[1763545913699,0.3608,91367.0,91366.0,2e-08]
[1763545916196,0.1415891,91358.0,91357.0,1e-08]
[1763545916492,0.6080291,91358.0,91357.0,1e-08]
[1763545916689,2.1080291,91358.0,91357.0,1e-08]
[1763545917488,2.1090291,91358.0,91357.0,1e-08]
[1763545917686,2.0033891,91358.0,91357.0,1e-08]
[1763545917889,2.1090691,91358.0,91357.0,0.02108001]
[1763545918096,2.0770091,91358.0,91357.0,1e-08]
[1763545918695,0.5770091,91358.0,91357.0,1e-08]
[1763545918890,0.5780091,91358.0,91357.0,1e-08]
[1763545919496,0.5770091,91358.0,91357.0,1e-08]
[1763545919697,0.5780091,91358.0,91357.0,1e-08]
[1763545920094,0.6047432,91358.0,91357.0,1e-08]
[1763545920294,0.6057432,91358.0,91357.0,1e-08]
[1763545920699,0.6047432,91358.0,91357.0,1e-08]
[1763545920901,0.6057432,91358.0,91357.0,1e-08]
[1763545921488,0.5780091,91358.0,91357.0,1e-08]
[1763545922196,0.60578814,91358.0,91357.0,1e-08]
[1763545924504,0.63784814,91358.0,91357.0,0.02209001]
[1763545924698,0.63784814,91358.0,91357.0,0.04529001]
[1763545924699,0.53216814,91358.0,91357.0,0.04529001]
[1763545924895,0.39057904,91358.0,91357.0,0.04529001]
[1763545925399,0.42263904,91358.0,91357.0,0.04529001]
[1763545925805,0.39057904,91358.0,91357.0,1e-08]
[1763545926906,0.39057904,91358.0,91344.0,0.00012388]
[1763545926907,0.1416048,91345.0,91344.0,0.04541388]
[1763545927106,0.60879702,91345.0,91344.0,0.00012388]
[1763545927299,0.53028373,91345.0,91344.0,0.00012388]
[1763545927504,0.1416216,91331.0,91330.0,0.03474]
[1763545927699,0.53020064,91331.0,91330.0,0.03693803]
[1763545927905,0.53020064,91331.0,91330.0,0.01484803]
[1763545928102,0.1416264,91327.0,91321.0,0.00016419]
[1763545928309,0.53020544,91327.0,91321.0,0.00016419]
[1763545929105,0.38857904,91327.0,91326.0,0.04556375]
[1763545929300,0.38857904,91327.0,91326.0,0.15513135]
[1763545929494,0.31857904,91327.0,91326.0,0.15513135]
[1763545931310,0.3608,91331.0,91330.0,0.15705073]
[1763545932003,0.3608,91331.0,91330.0,0.04748803]
[1763545932401,0.04437,91337.0,91336.0,0.04529]
[1763545933006,0.08361741,91337.0,91336.0,0.04529]
[1763545933806,0.02232,91332.0,91331.0,0.04529]
[1763545934201,0.04437,91332.0,91331.0,0.04529]
[1763545934401,0.1539315,91331.0,91330.0,0.00219803]
[1763545934602,0.5147315,91331.0,91330.0,0.00219803]
[1763545936505,0.5147315,91331.0,91330.0,0.02428803]
[1763545937198,0.5147315,91331.0,91330.0,0.00219803]
[1763545937806,0.40517,91331.0,91330.0,0.00219803]
[1763545938002,0.38312,91331.0,91330.0,0.04748803]
[1763545938206,0.40006325,91331.0,91330.0,0.06070803]
[1763545938609,0.03926325,91333.0,91332.0,0.04529]
[1763545938807,0.03926325,91334.0,91333.0,0.1548492]
[1763545939210,0.41969974,91338.0,91337.0,0.1548444]
[1763545940223,0.3608,91338.0,91337.0,0.1548444]
[1763545940407,0.42072199,91338.0,91337.0,0.1548444]
[1763545940804,0.3618,91338.0,91337.0,0.04529]
[1763545941110,0.38412,91338.0,91337.0,0.04529]
[1763545941311,0.40617,91338.0,91337.0,0.04529]
[1763545941503,0.40717,91338.0,91337.0,0.04529]
[1763545943306,0.43682477,91338.0,91337.0,0.04529]
[1763545944211,0.39245477,91338.0,91337.0,0.04529]
[1763545944917,0.43179718,91338.0,91337.0,0.04529]
[1763545945120,0.39245477,91338.0,91337.0,0.04529]
[1763545946413,9.989e-05,91345.0,91343.0,0.0453]
[1763545946608,0.05901776,91357.0,91356.0,0.1095315]
[1763545946815,0.05901776,91362.0,91361.0,0.03944]
[1763545947012,0.10902776,91368.0,91367.0,0.03944]
[1763545947214,0.05001,91368.0,91367.0,0.1489583]
[1763545947419,0.05001,91368.0,91367.0,0.1095183]
[1763545948121,0.05008777,91368.0,91367.0,0.1292383]
[1763545948621,0.05008777,91368.0,91367.0,0.1489583]
[1763545950715,0.05008777,91368.0,91361.0,0.10572]
[1763545950716,0.0436,91365.0,91364.0,0.1095213]
[1763545950922,0.00648777,91368.0,91361.0,0.14516]
[1763545950923,0.0436,91362.0,91361.0,0.14516]
[1763545951121,0.0436,91362.0,91361.0,0.2546855]
[1763545952022,0.0426,91362.0,91361.0,0.2546855]
[1763545952420,0.0416,91362.0,91361.0,0.2546855]
[1763545952722,0.0416,91362.0,91361.0,0.2556855]
[1763545952922,0.05144777,91368.0,91367.0,0.1533983]
[1763545953127,7.777e-05,91368.0,91367.0,0.1533983]
[1763545953430,0.02285777,91368.0,91367.0,0.1533983]
[1763545953817,0.01439419,91377.0,91376.0,0.1533876]
[1763545953818,0.00016419,91377.0,91376.0,0.1533876]
[1763545954025,0.05919,91395.0,91394.0,0.1533661]
[1763545954724,0.05931114,91395.0,91394.0,0.1533661]
[1763545956021,0.05931114,91395.0,91390.0,0.00219803]
[1763545956022,0.04496,91391.0,91390.0,0.00219803]
[1763545957131,0.04496,91391.0,91390.0,0.04607803]
[1763545957328,0.02278,91391.0,91390.0,0.04607803]
[1763545957524,0.04496,91391.0,91390.0,0.00219803]
[1763545957731,0.04496,91391.0,91388.0,0.10576]
[1763545957732,0.04496,91389.0,91388.0,0.10576]
[1763545958431,0.04496,91389.0,91385.0,0.00016419]
[1763545958432,0.05858,91386.0,91385.0,0.00016419]
[1763545959226,0.05858,91386.0,91385.0,4.19e-06]
[1763545964136,0.05858,91386.0,91385.0,0.10950099]
[1763545965335,0.1231156,91386.0,91385.0,4.19e-06]
[1763545966030,0.1241156,91386.0,91385.0,4.19e-06]
[1763545967833,0.01462,91386.0,91385.0,4.19e-06]
[1763545968527,0.1241156,91386.0,91385.0,4.19e-06]
[1763545974338,0.09782697,91386.0,91385.0,4.19e-06]
[1763545974540,0.45862697,91386.0,91385.0,4.19e-06]
[1763545974740,0.0656,91378.0,91377.0,0.2152663]
[1763545976341,0.1751051,91378.0,91377.0,0.10576]
[1763545977347,0.5359051,91378.0,91377.0,0.10576]
[1763545978745,0.0656,91378.0,91377.0,0.2152664]
[1763545979044,0.0656,91378.0,91377.0,0.2406664]
[1763545979742,0.0656,91378.0,91377.0,0.2660964]
[1763545980048,0.05039,91385.0,91384.0,0.1603279]
[1763545980248,0.07480011,91385.0,91384.0,0.1603279]
[1763545980444,0.05039,91385.0,91384.0,0.1603279]
[1763545982349,0.07481159,91385.0,91384.0,0.1603279]
[1763545983147,0.05079,91378.0,91377.0,0.49196]
[1763545983352,0.05079,91378.0,91377.0,0.6014663]
[1763545983650,0.05079,91378.0,91377.0,0.6258463]
[1763545983843,0.05079,91378.0,91377.0,0.68436796]
[1763545984251,0.05079,91378.0,91377.0,0.6258463]
[1763545984454,0.05079,91378.0,91377.0,0.68436796]
[1763545984751,0.05079,91378.0,91377.0,0.68536796]
[1763545985349,0.05079,91378.0,91377.0,0.68436796]
[1763545985752,0.05079,91378.0,91377.0,0.46656]
[1763545986047,0.00012114,91395.0,91394.0,0.158836]
[1763545986249,0.02455325,91395.0,91394.0,0.625316]
[1763545986548,0.00016419,91404.0,91403.0,0.1588252]
[1763545986745,0.00016419,91404.0,91403.0,0.2645052]
[1763545987147,0.00016419,91404.0,91403.0,0.32336658]
[1763545987447,0.00024592,91404.0,91403.0,0.2645052]
[1763545987854,0.02570592,91404.0,91403.0,0.2645052]
[1763545988157,0.00024592,91404.0,91403.0,0.2645052]
[1763545989042,0.00027351,91406.0,91405.0,0.04935]
[1763545989246,0.06593,91416.0,91415.0,0.1588109]
[1763545990353,0.06593,91416.0,91415.0,0.04935]
[1763545990855,0.05116,91415.0,91414.0,0.10568]
[1763545991754,0.05116,91415.0,91414.0,0.15503]
[1763545992151,0.05216,91415.0,91414.0,0.15503]
[1763545992756,0.05316,91415.0,91414.0,0.15503]
[1763545995547,0.02746,91415.0,91414.0,0.15503]
[1763545996256,0.05316,91415.0,91414.0,0.15503]
[1763545997257,0.06593,91424.0,91423.0,0.1588013]
[1763545997452,0.05116,91423.0,91422.0,0.3608]
[1763545997657,0.05116,91423.0,91422.0,0.38577]
[1763545997858,0.05116,91423.0,91422.0,0.41015]
[1763545998563,0.1606113,91423.0,91422.0,0.3608]
[1763545998754,0.1616113,91423.0,91422.0,0.3608]
[1763545998955,0.05216,91423.0,91422.0,0.3608]
[1763545999660,0.05316,91423.0,91422.0,0.3608]
[1763546000146,0.05316,91423.0,91422.0,0.38577]
[1763546000756,0.05316,91423.0,91422.0,0.41015]
[1763546001549,0.002,91423.0,91422.0,0.51575]
[1763546002460,0.002,91423.0,91422.0,0.6252024]
[1763546002657,0.0001641,91425.0,91424.0,0.1588]
[1763546003059,0.01477,91440.0,91424.0,0.1588]
[1763546003253,0.01477,91440.0,91422.0,0.4664]
[1763546003254,0.41196,91435.0,91434.0,0.04935]
[1763546003458,0.41196,91435.0,91434.0,0.15495]
[1763546003660,0.05116,91435.0,91434.0,0.15495]
[1763546004253,0.05116,91435.0,91434.0,0.13057]
[1763546004454,0.05116,91435.0,91434.0,0.1056]
[1763546007656,0.1546677,91426.0,91425.0,0.17661914]
[1763546007861,0.1546677,91426.0,91425.0,0.04489]
[1763546008558,0.1094585,91417.0,91416.0,0.13172914]
[1763546008759,0.04522,91415.0,91412.0,0.3608]
[1763546008951,0.04522,91415.0,91414.0,0.1057641]
[1763546009152,0.04522,91415.0,91414.0,0.0001641]
[1763546009663,0.04422,91415.0,91414.0,0.0450541]
[1763546010558,0.04322,91415.0,91414.0,0.0450541]
[1763546014156,0.04322,91415.0,91414.0,0.0001641]
[1763546014358,0.06739644,91415.0,91414.0,0.0001641]
[1763546014555,0.1550972,91393.0,91392.0,0.04352]
[1763546014749,0.5158972,91393.0,91392.0,0.04352]
[1763546014951,0.1550972,91393.0,91392.0,0.04352]
[1763546016662,0.01413,91399.0,91392.0,0.04352]
[1763546016663,0.04561,91399.0,91398.0,0.04352]
[1763546016851,0.00219803,91400.0,91399.0,0.153]
[1763546017163,0.0001641,91402.0,91399.0,0.153]
[1763546017164,0.0001641,91402.0,91401.0,0.04352]
[1763546018164,0.1688104,91416.0,91415.0,0.04352]
[1763546018563,0.19292038,91416.0,91415.0,0.04352]
[1763546019160,0.1688104,91416.0,91415.0,0.04352]
[1763546019362,0.1698104,91416.0,91415.0,0.04352]
[1763546019564,0.1550804,91407.0,91406.0,0.0436841]
[1763546019760,0.1550804,91407.0,91406.0,0.0001641]
[1763546025769,0.1550804,91407.0,91406.0,0.0436841]
[1763546028470,0.1550804,91407.0,91406.0,0.0001641]
[1763546029674,0.1550804,91407.0,91406.0,0.0436841]
[1763546031070,0.1550804,91407.0,91406.0,0.0221841]
[1763546031460,0.1550804,91407.0,91406.0,0.0001641]
[1763546031667,0.1550804,91407.0,91390.0,0.19047758]
[1763546031668,0.1550997,91391.0,91390.0,0.17524914]
[1763546031869,0.1551092,91383.0,91382.0,0.04352]
[1763546032576,0.1551188,91375.0,91374.0,0.05435525]
[1763546032872,0.00219803,91380.0,91374.0,0.05435525]
[1763546032873,0.4207041,91392.0,91391.0,0.04352]
[1763546033573,0.4207041,91392.0,91391.0,0.02202]
[1763546033774,0.1551092,91383.0,91382.0,0.17624914]
[1763546033975,0.1551092,91383.0,91382.0,0.04352]
[1763546034967,0.1551092,91383.0,91382.0,0.04452]
[1763546035466,0.1551092,91383.0,91382.0,0.001]
[1763546035668,0.1551092,91383.0,91382.0,0.02302]
[1763546035967,0.1551092,91383.0,91382.0,0.04452]
[1763546036172,0.1551092,91383.0,91382.0,0.04552]
[1763546036871,0.5159092,91383.0,91382.0,0.002]
[1763546037264,0.1551199,91374.0,91373.0,0.0001641]
[1763546037464,0.1551199,91374.0,91373.0,0.0436841]
[1763546039370,0.1551199,91374.0,91373.0,0.0456841]
[1763546040078,0.1551199,91374.0,91373.0,0.0241841]
[1763546040275,0.1551199,91374.0,91373.0,0.0021641]
[1763546040669,0.1551343,91362.0,91361.0,0.00010812]
[1763546040872,0.04561,91362.0,91361.0,0.04362812]
[1763546041680,0.04561,91362.0,91361.0,0.00010812]
[1763546042770,0.04561,91362.0,91361.0,0.00110812]
[1763546042970,0.04561,91362.0,91361.0,0.02235812]
[1763546043171,0.04561,91362.0,91361.0,0.04450812]
[1763546043366,0.02306,91362.0,91361.0,0.04350812]
[1763546043579,0.05975,91368.0,91367.0,0.0434]
[1763546043769,0.0001641,91371.0,91370.0,0.0434]
[1763546046572,0.02318,91383.0,91382.0,0.1529003]
[1763546046974,0.40642,91391.0,91390.0,0.0434]
[1763546047572,0.40642,91391.0,91390.0,0.02125]
[1763546048478,0.04562,91382.0,91381.0,0.0001641]
[1763546049084,0.04562,91382.0,91381.0,0.0214141]
[1763546049781,0.04562,91382.0,91381.0,0.0001641]
[1763546050372,0.04562,91382.0,91381.0,0.0435641]
[1763546050691,0.3608,91391.0,91390.0,0.0434]
[1763546050692,0.40642,91391.0,91390.0,0.0434]
[1763546051581,0.5159096,91391.0,91390.0,0.0434]
[1763546051787,0.40642,91391.0,91390.0,0.0434]
[1763546052090,0.04562,91391.0,91390.0,0.0434]
[1763546054181,0.1551203,91382.0,91381.0,0.28089324]
[1763546054381,0.04562,91382.0,91381.0,0.1491641]
[1763546054580,0.3608,91391.0,91381.0,0.1491641]
[1763546054581,0.04562,91392.0,91391.0,0.1528896]
[1763546054793,0.38398,91399.0,91398.0,0.0434]
[1763546055085,0.0001641,91400.0,91398.0,0.0434]
[1763546055086,0.0001641,91400.0,91399.0,0.0434]
[1763546055276,0.0001641,91400.0,91399.0,0.4042]
[1763546057480,0.0457841,91400.0,91399.0,0.4042]
[1763546057684,0.02554213,91400.0,91399.0,0.4052]
[1763546058185,0.02554213,91400.0,91399.0,0.4062]
[1763546058490,0.04798213,91400.0,91399.0,0.4062]
[1763546058787,0.04798213,91400.0,91399.0,0.4052]
[1763546058990,0.06177213,91400.0,91399.0,0.4062]
[1763546059584,0.06177213,91400.0,91399.0,0.4052]
[1763546060585,0.06177213,91400.0,91399.0,0.5108]
[1763546060988,0.06177213,91400.0,91399.0,0.4674]
[1763546061291,0.06177213,91400.0,91399.0,0.5118]
[1763546061593,0.06177213,91400.0,91399.0,0.5108]
[1763546061782,0.06177213,91400.0,91399.0,0.002]
[1763546061988,0.06177213,91400.0,91399.0,0.0454]
[1763546062188,0.06177213,91400.0,91399.0,0.0444]
[1763546062698,0.17125093,91400.0,91399.0,0.0444]
[1763546062884,0.06177213,91400.0,91399.0,0.0444]
[1763546063278,0.17125093,91400.0,91399.0,0.0434]
[1763546064784,0.06177213,91400.0,91399.0,0.0434]
[1763546065592,0.06177213,91400.0,91399.0,0.4042]
[1763546065593,0.04798213,91400.0,91399.0,0.4042]
[1763546067297,0.04798213,91400.0,91399.0,0.4052]
[1763546068200,0.04798213,91400.0,91399.0,0.4062]
[1763546070000,0.00027351,91406.0,91405.0,0.04439]
[1763546070205,0.00027351,91406.0,91405.0,0.2594228]
[1763546070692,0.05824,91416.0,91415.0,0.1538508]
[1763546072393,0.05824,91416.0,91415.0,0.04439]
[1763546073690,0.40659803,91420.0,91419.0,0.04387]
[1763546073900,0.0224741,91425.0,91424.0,0.15332]
[1763546074098,0.0437641,91425.0,91424.0,0.25892]
[1763546075205,0.0447641,91425.0,91424.0,0.25892]
[1763546075594,0.0457641,91425.0,91424.0,0.25892]
[1763546076195,0.0457641,91425.0,91424.0,0.14947]
[1763546082506,0.0244741,91425.0,91424.0,0.14947]
[1763546082804,0.01281,91441.0,91424.0,0.14947]
[1763546082805,0.05641,91441.0,91440.0,0.04387]
[1763546083807,0.05741,91441.0,91440.0,0.04387]
[1763546084004,0.00027339,91446.0,91445.0,0.153295]
[1763546084208,0.4044,91459.0,91458.0,0.04387]
[1763546084699,0.4044,91459.0,91458.0,0.1532793]
[1763546084901,0.0436,91459.0,91458.0,0.1532793]
[1763546085403,0.00219803,91460.0,91456.0,0.10556]
[1763546085404,0.0436,91457.0,91456.0,0.10556]
[1763546085710,0.0436,91457.0,91456.0,0.14943]
[1763546087204,0.0456,91457.0,91456.0,0.14943]
[1763546088204,0.0456,91457.0,91456.0,0.16008786]
[1763546089201,0.0456,91457.0,91456.0,0.14943]
[1763546095312,0.002,91457.0,91456.0,0.14943]
[1763546095610,0.01318,91482.0,91471.0,0.1532638]
[1763546095611,0.4044,91472.0,91471.0,0.1532638]
[1763546095812,0.0436,91472.0,91471.0,0.2587838]
[1763546096711,0.05678,91476.0,91475.0,0.04387]
[1763546096917,0.0436,91468.0,91467.0,0.5140681]
[1763546097114,0.0436,91468.0,91467.0,0.6195881]
[1763546098711,0.02231,91468.0,91467.0,0.6195881]
[1763546099217,0.0436,91468.0,91467.0,0.6195881]
[1763546099510,0.03447,91476.0,91475.0,0.153259]
[1763546099708,0.05678,91476.0,91475.0,0.258779]
[1763546100510,0.0436,91476.0,91475.0,0.258779]
[1763546100710,0.00219803,91480.0,91479.0,0.04387]
[1763546100915,0.4044,91491.0,91490.0,0.1532412]
[1763546101113,0.4044,91491.0,91490.0,0.2587612]
[1763546101318,0.4044,91491.0,91490.0,0.2707512]
[1763546101712,0.4044,91491.0,91490.0,0.2587612]
[1763546103120,0.4064,91491.0,91490.0,0.2587612]
[1763546104017,0.002,91491.0,91490.0,0.2718112]
[1763546106322,0.38314,91501.0,91500.0,0.1553191]
[1763546106627,0.41841,91511.0,91510.0,0.04596]
[1763546107711,0.40623,91511.0,91510.0,0.04596]
[1763546107922,0.00070238,91511.0,91510.0,0.04596]
[1763546108815,0.04513238,91511.0,91510.0,0.04596]
[1763546109126,0.00170238,91511.0,91510.0,0.04596]
[1763546109324,0.001,91511.0,91510.0,0.04596]
[1763546109527,0.02434,91511.0,91510.0,0.04596]
[1763546109824,0.04643,91511.0,91510.0,0.04596]
[1763546110028,0.02434,91511.0,91510.0,0.04596]
[1763546110216,0.002,91511.0,91510.0,0.04596]
[1763546111127,0.02434,91511.0,91510.0,0.04596]
[1763546111316,0.04643,91511.0,91510.0,0.04596]
[1763546111519,0.06021,91511.0,91510.0,0.02281]
[1763546111719,0.06021,91511.0,91508.0,0.10552]
[1763546111720,0.04443,91509.0,91508.0,0.10552]
[1763546112221,0.04443,91509.0,91508.0,0.12833]
[1763546112630,0.04443,91509.0,91508.0,0.2608296]
[1763546113930,0.04443,91509.0,91508.0,0.15148]
[1763546114228,0.1537785,91509.0,91508.0,0.10552]
[1763546114420,0.04443,91509.0,91508.0,0.10552]
[1763546114617,0.1537785,91509.0,91508.0,0.10552]
[1763546114816,0.00219803,91510.0,91490.0,0.01305]
[1763546114817,0.05821,91496.0,91495.0,0.1553252]
[1763546115122,0.04662803,91500.0,91499.0,0.1553204]
[1763546115917,0.02453803,91500.0,91499.0,0.1553204]
[1763546116331,0.05821,91511.0,91510.0,0.1553073]
[1763546116634,0.04443,91511.0,91510.0,0.1553073]
[1763546117832,0.04443,91511.0,91506.0,0.12829]
[1763546117833,0.04443,91507.0,91506.0,0.12829]
[1763546118731,0.04443,91507.0,91506.0,0.15144]
[1763546122122,0.04443,91507.0,91506.0,0.10548]
[1763546123731,0.04443,91507.0,91506.0,0.14927]
[1763546125131,0.06813925,91507.0,91506.0,0.14927]
[1763546125336,0.04443,91507.0,91506.0,0.14927]
[1763546128125,0.06816653,91507.0,91506.0,0.14927]
[1763546130126,0.0457,91492.0,91491.0,0.404754]
[1763546130436,0.0457,91492.0,91491.0,0.510194]
[1763546130635,0.06946436,91492.0,91491.0,0.619564]
[1763546131340,0.06946436,91492.0,91491.0,0.620564]
[1763546131731,0.06946436,91492.0,91491.0,0.488994]
[1763546132339,0.06947627,91492.0,91491.0,0.106604]
[1763546132741,0.43027627,91492.0,91491.0,0.106604]
[1763546133533,0.43027627,91492.0,91491.0,0.000164]
[1763546133836,0.43027627,91492.0,91480.0,0.13147473]
[1763546133837,0.01377,91483.0,91480.0,0.131682]
[1763546134037,0.04618,91481.0,91480.0,0.131682]
[1763546134233,0.04618,91481.0,91480.0,0.153512]
[1763546134433,0.04618,91481.0,91475.0,0.14957]
[1763546134434,0.04618,91476.0,91475.0,0.14957]
[1763546136142,0.02518803,91480.0,91479.0,0.1535142]
[1763546136643,0.04837803,91480.0,91479.0,0.1535142]
[1763546136944,0.00219803,91480.0,91479.0,0.1535142]
[1763546137135,0.00016368,91485.0,91484.0,0.1535083]
[1763546138245,0.04634368,91485.0,91484.0,0.1535083]
[1763546138446,0.00016368,91485.0,91484.0,0.1535083]
[1763546139834,0.0723,91497.0,91496.0,0.04413]
[1763546140039,0.1555427,91497.0,91496.0,0.04413]
[1763546141747,0.04618,91488.0,91487.0,0.17576873]
[1763546142048,0.04618,91488.0,91487.0,0.044294]
[1763546147859,0.04618,91488.0,91487.0,0.1536688]
[1763546148055,0.1555536,91488.0,91487.0,0.022464]
[1763546148358,0.1555536,91488.0,91487.0,0.000164]
[1763546149555,0.04618,91488.0,91487.0,0.1536688]
[1763546153161,0.04618,91488.0,91487.0,0.044294]
[1763546156863,0.00219803,91490.0,91489.0,0.04413]
[1763546157168,0.0723,91500.0,91499.0,0.04413]
[1763546157169,0.11848,91500.0,91499.0,0.04413]
[1763546157366,0.14445818,91500.0,91499.0,0.04413]
[1763546160263,0.14445818,91500.0,91499.0,0.1534904]
[1763546160769,0.25381728,91500.0,91499.0,0.04413]
[1763546162071,0.26657728,91500.0,91499.0,0.04413]
[1763546162263,0.04272,91499.0,91498.0,0.1093614]
[1763546162464,0.06650015,91499.0,91498.0,0.1318914]
[1763546162671,0.06650015,91499.0,91498.0,0.1551914]
[1763546164574,0.06650015,91499.0,91498.0,0.04583]
[1763546164775,0.06650015,91499.0,91498.0,0.1551915]
[1763546166274,0.06650015,91499.0,91498.0,0.04583]
[1763546167076,0.04272,91499.0,91498.0,0.04583]
[1763546168368,0.04272,91498.0,91497.0,0.1551924]
[1763546171271,0.04272,91497.0,91496.0,0.03922209]
[1763546171582,0.1648463,91494.0,91493.0,0.03922209]
[1763546171970,0.1520924,91489.0,91488.0,0.03922209]
[1763546172176,0.1520924,91489.0,91488.0,0.06175209]
[1763546172479,0.04272,91489.0,91488.0,0.0593]
[1763546173177,0.02132,91489.0,91488.0,0.0593]
[1763546173379,0.00219803,91490.0,91489.0,0.1552024]
[1763546174378,0.02351803,91490.0,91489.0,0.1552024]
[1763546174978,0.04491803,91490.0,91489.0,0.1552024]
[1763546175373,0.04491803,91490.0,91489.0,0.02253]
[1763546175579,0.05548,91488.0,91487.0,0.000164]
[1763546175785,0.05548,91488.0,91487.0,0.045994]
[1763546176379,0.05548,91488.0,91487.0,0.08519709]
[1763546176974,0.04272,91488.0,91487.0,0.08519709]
[1763546177286,0.02132,91488.0,91487.0,0.045994]
[1763546178485,0.04272,91488.0,91487.0,0.045994]
[1763546182488,0.00219803,91490.0,91489.0,0.04583]
[1763546182989,0.04491803,91490.0,91489.0,0.04583]
[1763546184289,0.04491803,91490.0,91489.0,0.10457844]
[1763546185386,0.41747,91500.0,91499.0,0.1550303]
[1763546185587,0.40690803,91500.0,91499.0,0.1550303]
[1763546186292,0.36299803,91500.0,91499.0,0.1550303]
[1763546186482,0.02447803,91500.0,91499.0,0.1550303]
[1763546186679,0.04610803,91500.0,91499.0,0.04567]
[1763546186879,0.04610803,91500.0,91499.0,0.08486249]
[1763546187078,0.05992803,91500.0,91499.0,0.08486249]
[1763546188395,0.05992803,91500.0,91499.0,0.06168249]
[1763546188779,0.05992803,91500.0,91498.0,0.03919249]
[1763546188993,0.1532703,91499.0,91498.0,0.03919249]
[1763546189488,0.1532703,91499.0,91498.0,0.06168249]
[1763546189686,0.1532703,91499.0,91498.0,0.08486249]
[1763546191196,0.04391,91499.0,91498.0,0.08486249]
[1763546191387,0.04391,91499.0,91498.0,0.04567]
[1763546192592,0.1532704,91499.0,91498.0,0.04567]
[1763546192788,0.1532704,91499.0,91498.0,0.08483814]
[1763546192989,0.04391,91499.0,91498.0,0.08483814]
[1763546194086,0.02228,91499.0,91498.0,0.08483814]
[1763546194293,0.04398,91499.0,91498.0,0.04567]
[1763546194993,0.04398,91499.0,91498.0,0.08484101]
[1763546195202,0.40478,91499.0,91498.0,0.03917101]
[1763546195391,0.04311,91493.0,91492.0,0.06183101]
[1763546195592,0.04311,91493.0,91492.0,0.03917101]
[1763546195892,0.04530803,91490.0,91489.0,0.08464101]
[1763546196094,0.40610803,91490.0,91489.0,0.08464101]
[1763546196397,0.40610803,91490.0,91489.0,0.03917101]
[1763546196702,0.40610803,91490.0,91489.0,0.01564161]
[1763546196886,0.05694,91488.0,91487.0,0.000164]
[1763546197402,0.05694,91488.0,91487.0,0.022824]
[1763546197700,0.05694,91488.0,91487.0,0.045634]
[1763546199895,0.05694,91488.0,91487.0,0.000164]
[1763546201196,0.02141,91488.0,91487.0,0.1550088]
[1763546201387,0.04311,91488.0,91487.0,0.1550088]
[1763546201789,0.05694,91488.0,91487.0,0.1550088]
[1763546203391,0.05694,91488.0,91487.0,0.1560088]
[1763546203592,0.05694,91488.0,91487.0,0.046634]
[1763546204092,0.05694,91488.0,91487.0,0.045634]
[1763546206696,0.04311,91488.0,91487.0,0.1550087]
[1763546209096,0.00219803,91490.0,91489.0,0.1548423]
[1763546209484,0.04530803,91490.0,91489.0,0.1548423]
[1763546210487,0.04530803,91490.0,91489.0,0.1558423]